bitfinex-derivatives/quotes_BTCF0:USTF0_20250711
["timestamp","ask_amount","ask_price","bid_price","bid_amount"]
[1752214026889,0.002,118450.0,118440.0,1.15174796]
[1752214027088,0.002,118450.0,118440.0,1.77564796]
[1752214027395,0.1687291,118480.0,118470.0,0.2531017]
[1752214027595,0.2939291,118480.0,118470.0,1.2242614]
[1752214027791,0.1687576,118460.0,118450.0,0.01796365]
[1752214028089,0.16708392,118450.0,118440.0,0.50668855]
[1752214028290,0.65308392,118450.0,118440.0,0.50568855]
[1752214028494,1.53722821,118450.0,118440.0,0.00468855]
[1752214028694,1.73017222,118450.0,118440.0,0.01068855]
[1752214028895,0.29288393,118450.0,118440.0,0.54027465]
[1752214029092,0.2939719,118450.0,118440.0,0.53727465]
[1752214029287,0.2109354,118470.0,118440.0,0.79720472]
[1752214029492,0.2109354,118470.0,118460.0,0.5295576]
[1752214029889,0.1687496,118470.0,118460.0,0.5295576]
[1752214030093,0.65512609,118480.0,118470.0,0.1687434]
[1752214030292,0.02170001,118480.0,118470.0,0.1667434]
[1752214030495,0.0829,118480.0,118470.0,0.5275434]
[1752214030697,0.1448,118480.0,118470.0,0.5275434]
[1752214030894,0.1448,118480.0,118470.0,1.1389034]
[1752214031197,0.1237,118480.0,118470.0,1.1369034]
[1752214031389,0.2924291,118480.0,118470.0,1.1369034]
[1752214031790,0.1687434,118470.0,118460.0,0.4029865]
[1752214031990,0.1687576,118460.0,118450.0,0.5717539]
[1752214032191,0.72136236,118460.0,118450.0,0.1687719]
[1752214032486,0.72196237,118460.0,118450.0,0.1687719]
[1752214032690,0.29136963,118460.0,118450.0,0.5295719]
[1752214032890,0.29076962,118460.0,118450.0,0.5295719]
[1752214033900,0.1687719,118450.0,118440.0,1.24411388]
[1752214034102,0.1171,118450.0,118440.0,1.24411388]
[1752214034801,0.2109394,118470.0,118460.0,0.1687576]
[1752214035006,0.27113941,118470.0,118460.0,0.596345]
[1752214035304,0.0596,118470.0,118460.0,1.207145]
[1752214035503,0.2283434,118470.0,118460.0,0.0667874]
[1752214035697,0.1687576,118460.0,118450.0,1.2227817]
[1752214035894,0.2283576,118460.0,118450.0,1.2227817]
[1752214036093,0.2858576,118460.0,118450.0,1.2227817]
[1752214036302,0.2858576,118460.0,118450.0,0.5295719]
[1752214036701,0.67257106,118460.0,118450.0,0.5295719]
[1752214036898,0.67257106,118460.0,118450.0,0.5305719]
[1752214037106,0.2320686,118480.0,118470.0,0.1687434]
[1752214037402,0.22878611,118480.0,118470.0,0.5295434]
[1752214037602,0.2849861,118480.0,118470.0,0.5295434]
[1752214037802,0.11625,118480.0,118470.0,0.5295434]
[1752214038002,0.1687434,118470.0,118460.0,0.3608]
[1752214038195,0.1687576,118460.0,118450.0,0.005]
[1752214038395,1.03247106,118460.0,118450.0,0.004]
[1752214038708,0.1687719,118450.0,118440.0,0.08675262]
[1752214038903,0.2849719,118450.0,118440.0,0.08675262]
[1752214039201,0.2869719,118450.0,118440.0,0.25553872]
[1752214040305,0.2869719,118450.0,118440.0,0.25753872]
[1752214040909,0.2869719,118450.0,118440.0,0.02106688]
[1752214041106,1.2590919,118450.0,118440.0,0.02606688]
[1752214041301,1.25969191,118450.0,118440.0,0.02606688]
[1752214042204,0.1688004,118430.0,118420.0,0.37876873]
[1752214042404,0.1688004,118430.0,118420.0,0.3608]
[1752214042603,0.8388404,118430.0,118420.0,0.3608]
[1752214043008,0.1688146,118420.0,118410.0,0.5296289]
[1752214043209,0.1688146,118420.0,118400.0,1.24244952]
[1752214043210,0.1688289,118410.0,118400.0,1.24244952]
[1752214043403,0.2280289,118410.0,118400.0,0.63112952]
[1752214043700,0.2280289,118410.0,118400.0,0.53133222]
[1752214043903,0.2280289,118410.0,118400.0,0.36248912]
[1752214044101,0.2280289,118410.0,118400.0,0.53133222]
[1752214044298,1.4503489,118410.0,118400.0,0.36248912]
[1752214044508,1.45094891,118410.0,118400.0,0.00368912]
[1752214044706,1.81374891,118410.0,118400.0,0.00368912]
[1752214045508,1.87084891,118410.0,118400.0,0.00368912]
[1752214045712,0.1688717,118380.0,118370.0,0.02197113]
[1752214045911,0.168886,118370.0,118360.0,0.02197113]
[1752214046205,0.0576,118370.0,118360.0,0.1689003]
[1752214046411,0.226486,118370.0,118360.0,0.55167143]
[1752214046612,0.226486,118370.0,118360.0,0.02197113]
[1752214047014,1.285,118370.0,118360.0,0.19087143]
[1752214047313,0.002,118370.0,118360.0,0.94619351]
[1752214047507,0.003,118370.0,118360.0,1.69154338]
[1752214047707,0.67032,118400.0,118390.0,0.1688575]
[1752214047708,0.0576,118400.0,118390.0,0.1688575]
[1752214047908,0.1708422,118410.0,118400.0,0.1688432]
[1752214047909,0.002,118410.0,118400.0,0.1688432]
[1752214048107,0.002,118410.0,118400.0,0.5904432]
[1752214048403,0.83395346,118450.0,118430.0,0.168796]
[1752214048604,0.0574,118440.0,118430.0,0.5717958]
[1752214048806,0.2270219,118450.0,118440.0,0.1687862]
[1752214049005,0.2270219,118450.0,118440.0,0.5295862]
[1752214049308,0.05825,118450.0,118440.0,0.5295862]
[1752214049510,0.2282219,118450.0,118440.0,0.5295862]
[1752214049902,0.00205,118450.0,118440.0,1.1418262]
[1752214050110,0.00205,118450.0,118440.0,1.2641262]
[1752214050708,0.00205,118450.0,118440.0,1.4329822]
[1752214050906,0.00305,118450.0,118440.0,0.6518862]
[1752214051110,0.00305,118450.0,118440.0,1.3401162]
[1752214051310,0.00305,118450.0,118440.0,1.40652515]
[1752214051510,0.00205,118450.0,118440.0,1.40752515]
[1752214051808,0.03428,118450.0,118440.0,1.3407962]
[1752214052213,0.03428,118450.0,118440.0,1.3407562]
[1752214052409,0.00205,118450.0,118440.0,1.3427562]
[1752214053309,0.2030519,118450.0,118440.0,1.3447562]
[1752214053709,0.3216519,118450.0,118440.0,1.3447562]
[1752214054013,0.3216519,118450.0,118440.0,1.2226962]
[1752214054514,0.3216519,118450.0,118440.0,1.2195762]
[1752214054709,0.3684019,118450.0,118440.0,0.07791]
[1752214055311,0.3684019,118450.0,118440.0,0.07891]
[1752214055909,0.09118,118450.0,118440.0,0.6084962]
[1752214056213,0.09118,118450.0,118440.0,1.3361562]
[1752214056214,0.00305,118450.0,118440.0,1.3361562]
[1752214056406,0.00305,118450.0,118440.0,1.3360762]
[1752214056812,0.00365001,118450.0,118440.0,1.3360762]
[1752214057008,0.00305,118450.0,118440.0,1.3360762]
[1752214057207,0.00305,118450.0,118440.0,1.40287843]
[1752214057512,0.00305,118450.0,118440.0,1.40387843]
[1752214057712,0.00205,118450.0,118440.0,1.40387843]
[1752214059116,0.00205,118450.0,118440.0,1.40587843]
[1752214060411,0.00205,118450.0,118440.0,1.40687843]
[1752214061717,0.00205,118450.0,118440.0,1.57573443]
[1752214062615,0.00205,118450.0,118440.0,1.40687843]
[1752214063512,0.00205,118450.0,118440.0,0.79539843]
[1752214063712,0.00205,118450.0,118440.0,1.40531843]
[1752214064510,0.00205,118450.0,118440.0,0.79539843]
[1752214064712,0.00205,118450.0,118440.0,1.40527843]
[1752214065518,0.00205,118450.0,118440.0,1.40627843]
[1752214065911,0.00205,118450.0,118440.0,1.40427843]
[1752214066217,0.00205,118450.0,118440.0,1.40827843]
[1752214066715,0.00205,118450.0,118440.0,0.79839843]
[1752214066920,0.00205,118450.0,118440.0,1.40827843]
[1752214067513,0.00205,118450.0,118440.0,1.40627843]
[1752214069417,0.00205,118450.0,118440.0,1.40623843]
[1752214069613,0.00205,118450.0,118440.0,1.40423843]
[1752214069813,0.00205,118450.0,118440.0,0.79439843]
[1752214070014,0.03428,118450.0,118440.0,1.40423843]
[1752214070219,0.14778,118450.0,118440.0,1.40423843]
[1752214070407,0.00205,118450.0,118440.0,1.40423843]
[1752214070608,0.03428,118450.0,118440.0,0.73589843]
[1752214070913,0.03428,118450.0,118440.0,1.28613843]
[1752214071117,0.05865,118450.0,118440.0,1.74930241]
[1752214071318,0.00205,118450.0,118440.0,1.74930241]
[1752214071617,0.00205,118450.0,118440.0,1.86490241]
[1752214072117,0.00205,118450.0,118440.0,1.86290241]
[1752214072418,0.00205,118450.0,118440.0,1.86390241]
[1752214073616,0.00205,118450.0,118440.0,1.88607733]
[1752214073816,0.00205,118450.0,118440.0,1.88507733]
[1752214074217,0.00205,118450.0,118440.0,1.89246898]
[1752214074516,0.00205,118450.0,118440.0,1.88521831]
[1752214075019,0.0802,118470.0,118460.0,0.1998578]
[1752214075212,0.0211,118470.0,118460.0,2.04022178]
[1752214075415,0.2207436,118470.0,118460.0,1.5770178]
[1752214075615,0.1688,118470.0,118460.0,1.5770178]
[1752214076112,0.1688,118470.0,118460.0,1.2162178]
[1752214076113,0.84782758,118470.0,118460.0,1.2162178]
[1752214076317,0.21588,118470.0,118460.0,0.6064178]
[1752214076517,0.21588,118470.0,118460.0,1.2161778]
[1752214076822,0.1688,118470.0,118460.0,1.2161778]
[1752214077023,0.1477,118470.0,118460.0,1.2161778]
[1752214077822,0.1477,118470.0,118460.0,1.5769778]
[1752214078020,0.1168,118470.0,118460.0,1.5769778]
[1752214078520,0.0591,118470.0,118460.0,2.04018178]
[1752214078826,0.0591,118470.0,118460.0,2.15968178]
[1752214079222,0.0591,118470.0,118460.0,1.6964778]
[1752214079526,0.0591,118470.0,118460.0,1.6974778]
[1752214080022,0.0599,118480.0,118470.0,0.1687435]
[1752214080327,0.1364,118480.0,118470.0,0.6064035]
[1752214080714,0.3360293,118480.0,118470.0,0.6064035]
[1752214080924,0.3821093,118480.0,118470.0,0.6064035]
[1752214081125,0.84591329,118480.0,118470.0,0.97048]
[1752214081324,0.84591329,118480.0,118470.0,0.7784235]
[1752214081525,0.84591329,118480.0,118470.0,0.8241835]
[1752214081826,0.84591329,118480.0,118470.0,0.8552835]
[1752214082024,0.84591329,118480.0,118470.0,0.2456035]
[1752214082225,0.84591329,118480.0,118470.0,0.8552835]
[1752214082423,0.84591329,118480.0,118470.0,0.2456035]
[1752214082622,0.84591329,118480.0,118470.0,0.8552835]
[1752214083119,0.07698,118470.0,118460.0,1.3004224]
[1752214083324,0.19768,118470.0,118460.0,0.6907824]
[1752214083622,0.19768,118470.0,118460.0,1.3004224]
[1752214084416,0.19768,118470.0,118460.0,0.6907824]
[1752214084623,0.19768,118470.0,118460.0,1.3004224]
[1752214085226,0.19768,118470.0,118460.0,1.3014224]
[1752214085424,0.19768,118470.0,118460.0,0.6927824]
[1752214085625,0.19768,118470.0,118460.0,1.3024224]
[1752214085921,0.82962748,118470.0,118460.0,0.6084178]
[1752214086115,0.82962748,118470.0,118460.0,0.002]
[1752214086116,0.99845148,118470.0,118460.0,0.002]
[1752214086314,0.0309,118460.0,118440.0,0.64383528]
[1752214086520,0.70895598,118450.0,118440.0,0.67493708]
[1752214086827,0.70895598,118450.0,118440.0,0.31413708]
[1752214087025,0.76565598,118450.0,118440.0,0.31413708]
[1752214087226,1.12645598,118450.0,118440.0,0.14535078]
[1752214087728,0.76625599,118450.0,118440.0,0.31713708]
[1752214087927,0.30305201,118450.0,118440.0,0.31713708]
[1752214088124,0.302452,118450.0,118440.0,0.31713708]
[1752214088329,0.302452,118450.0,118440.0,0.31813708]
[1752214088829,0.302452,118450.0,118440.0,0.31413708]
[1752214089131,0.302452,118450.0,118440.0,0.31513708]
[1752214089323,0.302452,118450.0,118440.0,0.06949078]
[1752214089523,0.717952,118450.0,118440.0,0.23827708]
[1752214089729,1.18175599,118450.0,118440.0,0.23827708]
[1752214090127,0.82095599,118450.0,118440.0,0.23927708]
[1752214090329,0.35775201,118450.0,118440.0,0.23927708]
[1752214090529,0.35775201,118450.0,118440.0,0.28503708]
[1752214090926,0.35775201,118450.0,118440.0,0.28403708]
[1752214091134,0.36175201,118450.0,118440.0,0.67493708]
[1752214092039,0.36175201,118450.0,118440.0,0.31413708]
[1752214092243,0.36175201,118450.0,118440.0,0.67493708]
[1752214092737,0.14690001,118450.0,118440.0,1.15578915]
[1752214092939,0.004,118450.0,118440.0,1.15578915]
[1752214093138,0.004,118450.0,118440.0,1.27438915]
[1752214093937,0.002,118450.0,118440.0,1.27438915]
[1752214094136,0.0536,118460.0,118450.0,0.168772]
[1752214094334,0.0536,118460.0,118450.0,1.331552]
[1752214094544,0.0845,118460.0,118450.0,1.215952]
[1752214094737,0.3081578,118460.0,118450.0,1.215952]
[1752214094939,0.1394,118460.0,118450.0,1.215952]
[1752214095435,0.1394,118460.0,118450.0,1.216952]
[1752214096746,0.0536,118460.0,118450.0,1.332552]
[1752214097143,0.1114,118460.0,118450.0,1.332552]
[1752214097340,0.1114,118460.0,118450.0,1.35494949]
[1752214097646,0.1114,118460.0,118450.0,1.35594949]
[1752214098649,0.1423,118460.0,118450.0,1.35594949]
[1752214098839,0.3571378,118460.0,118450.0,1.217952]
[1752214099243,0.35773781,118460.0,118450.0,1.217952]
[1752214099644,0.14290001,118460.0,118450.0,1.217952]
[1752214099845,0.1423,118460.0,118450.0,1.217952]
[1752214100551,0.3110578,118460.0,118450.0,1.275252]
[1752214100851,0.3110578,118460.0,118450.0,1.273252]
[1752214100852,0.3140578,118460.0,118450.0,1.273252]
[1752214101046,0.3140578,118460.0,118450.0,1.215952]
[1752214101240,0.82334178,118460.0,118450.0,0.43766]
[1752214101553,0.245752,118450.0,118440.0,0.69258257]
[1752214101746,0.82475598,118450.0,118440.0,0.67493448]
[1752214102147,0.82475598,118450.0,118440.0,0.50615078]
[1752214102341,0.82475598,118450.0,118440.0,0.6973789]
[1752214102853,0.82475598,118450.0,118440.0,0.69737816]
[1752214103252,0.82475598,118450.0,118440.0,0.52859186]
[1752214103553,0.82475598,118450.0,118440.0,0.49749186]
[1752214103951,0.82535599,118450.0,118440.0,0.50049186]
[1752214104144,0.82535599,118450.0,118440.0,0.45473186]
[1752214104549,1.18615599,118450.0,118440.0,0.02712963]
[1752214104843,0.2467405,118430.0,118420.0,0.07884]
[1752214105047,1.92854448,118430.0,118420.0,0.10129525]
[1752214105246,2.04324449,118430.0,118420.0,0.10129525]
[1752214105659,2.04324449,118430.0,118420.0,0.27011005]
[1752214105952,1.58004051,118430.0,118420.0,0.27011005]
[1752214106154,0.14565001,118430.0,118420.0,0.63091005]
[1752214106347,0.14505,118430.0,118420.0,0.65322595]
[1752214106652,0.14505,118430.0,118420.0,0.70632595]
[1752214106953,0.3158505,118430.0,118420.0,0.76142595]
[1752214107149,0.3158505,118430.0,118420.0,0.82752775]
[1752214108259,0.3158505,118430.0,118420.0,0.71932775]
[1752214108554,0.3628405,118430.0,118420.0,0.71932775]
[1752214108755,0.3628905,118430.0,118420.0,0.71932775]
[1752214109051,1.18749449,118430.0,118420.0,0.0884177]
[1752214109250,0.2467548,118420.0,118410.0,0.4619559]
[1752214109456,2.03795878,118420.0,118410.0,0.43964]
[1752214109646,2.03855879,118420.0,118410.0,0.43964]
[1752214110348,2.03855879,118420.0,118410.0,0.3608]
[1752214110549,0.246769,118410.0,118400.0,0.10286016]
[1752214110858,0.246769,118410.0,118400.0,0.08052912]
[1752214110859,0.81957298,118410.0,118400.0,0.08052912]
[1752214111157,0.98908499,118410.0,118400.0,0.00168912]
[1752214111353,1.34988499,118410.0,118400.0,0.00168912]
[1752214111749,1.18097299,118410.0,118400.0,0.00268912]
[1752214111956,0.75031001,118410.0,118400.0,0.63350346]
[1752214112158,0.91913901,118410.0,118400.0,0.63350346]
[1752214112757,0.08775001,118410.0,118400.0,0.63450346]
[1752214112956,0.08715,118410.0,118400.0,0.74550346]
[1752214113154,0.003,118410.0,118400.0,0.74450346]
[1752214113652,0.001,118410.0,118400.0,0.74350346]
[1752214113857,0.003,118410.0,118400.0,0.74350346]
[1752214114849,0.003,118410.0,118400.0,0.75073899]
[1752214115051,0.003,118410.0,118400.0,0.77305439]
[1752214115454,0.202779,118410.0,118400.0,0.60421109]
[1752214115655,1.32209298,118410.0,118400.0,0.00168912]
[1752214115851,1.96340499,118410.0,118400.0,2e-08]
[1752214116151,0.2316976,118390.0,118380.0,0.02233153]
[1752214116355,1.66482158,118390.0,118380.0,0.02233153]
[1752214116660,1.94536559,118390.0,118380.0,0.02233153]
[1752214116858,0.31140761,118390.0,118380.0,0.27004333]
[1752214117056,0.3108076,118390.0,118380.0,0.6604099]
[1752214117359,0.3108076,118390.0,118380.0,0.63807837]
[1752214117561,0.3108076,118390.0,118380.0,0.27727837]
[1752214117861,0.3108076,118390.0,118380.0,0.63807837]
[1752214118061,0.3108076,118390.0,118380.0,0.63907837]
[1752214119065,0.3118076,118390.0,118380.0,0.63907837]
[1752214119464,0.3118576,118390.0,118380.0,0.63907837]
[1752214119665,0.3138576,118390.0,118380.0,0.63807837]
[1752214120663,0.3118576,118390.0,118380.0,0.63807837]
[1752214120864,0.3138576,118390.0,118380.0,0.63807837]
[1752214121759,0.3148576,118390.0,118380.0,0.63807837]
[1752214122652,0.3138576,118390.0,118380.0,0.63807837]
[1752214124260,0.3457476,118390.0,118380.0,0.63807837]
[1752214124459,0.80955159,118390.0,118380.0,0.04614]
[1752214124768,0.80955159,118390.0,118380.0,0.2477118]
[1752214125561,0.80955159,118390.0,118380.0,0.07884]
[1752214125762,1.17035159,118390.0,118380.0,0.07884]
[1752214126165,0.80955159,118390.0,118380.0,0.6085118]
[1752214126366,0.00365001,118390.0,118380.0,1.74261842]
[1752214126565,0.00305,118390.0,118380.0,1.84981842]
[1752214127967,5e-05,118390.0,118380.0,1.85181842]
[1752214128766,0.02111,118400.0,118390.0,0.1688576]
[1752214128968,0.02111,118400.0,118390.0,1.17860158]
[1752214131167,0.02111,118400.0,118390.0,1.17960158]
[1752214131768,0.02111,118400.0,118390.0,1.18060158]
[1752214132074,0.02111,118400.0,118390.0,1.17960158]
[1752214132272,0.02111,118400.0,118390.0,1.18060158]
[1752214132671,0.02111,118400.0,118390.0,1.17960158]
[1752214132974,0.02111,118400.0,118390.0,1.18060158]
[1752214134372,0.00205,118410.0,118400.0,0.2474432]
[1752214134574,0.00205,118410.0,118400.0,1.81210104]
[1752214135871,0.00205,118410.0,118400.0,1.81510104]
[1752214137371,0.00205,118410.0,118400.0,1.35077706]
[1752214137675,0.00205,118410.0,118400.0,1.81394104]
[1752214138176,0.00205,118410.0,118400.0,1.81294104]
[1752214138370,0.00205,118410.0,118400.0,1.84471281]
[1752214138772,0.00205,118410.0,118400.0,1.84271281]
[1752214139178,0.00205,118410.0,118400.0,1.37950883]
[1752214139476,0.00205,118410.0,118400.0,1.84271281]
[1752214140378,0.00205,118410.0,118400.0,1.23423281]
[1752214140679,0.66537298,118410.0,118400.0,0.62585706]
[1752214140977,0.307289,118410.0,118400.0,1.23721706]
[1752214141166,0.82769298,118410.0,118400.0,0.6112432]
[1752214141370,0.99660498,118410.0,118400.0,0.3618]
[1752214141575,0.82829299,118410.0,118400.0,0.5630732]
[1752214141782,0.82829299,118410.0,118400.0,0.6102432]
[1752214141974,0.82829299,118410.0,118400.0,0.6092432]
[1752214142278,0.83029299,118410.0,118400.0,0.6092432]
[1752214142475,0.14854001,118410.0,118400.0,0.6092432]
[1752214142676,0.14794,118410.0,118400.0,0.6092432]
[1752214143281,0.14794,118410.0,118400.0,0.6082432]
[1752214143485,0.15094,118410.0,118400.0,0.6082432]
[1752214143878,0.319769,118410.0,118400.0,0.6082432]
[1752214144081,0.31536901,118410.0,118400.0,0.6082432]
[1752214144280,0.319769,118410.0,118400.0,0.6082432]
[1752214144483,0.20066,118410.0,118400.0,0.6082432]
[1752214144679,0.19866,118410.0,118400.0,0.62602422]
[1752214144982,0.14894,118410.0,118400.0,0.62602422]
[1752214145181,0.3177689,118410.0,118400.0,0.62602422]
[1752214145482,0.14894,118410.0,118400.0,0.62602422]
[1752214146578,0.14894,118410.0,118400.0,1.23422422]
[1752214146579,0.11765,118410.0,118400.0,1.23422422]
[1752214146783,0.286479,118410.0,118400.0,1.23422422]
[1752214146981,0.14894,118410.0,118400.0,1.23422422]
[1752214147179,0.11765,118410.0,118400.0,1.23422422]
[1752214147379,0.11765,118410.0,118400.0,1.29152422]
[1752214147579,0.00505,118410.0,118400.0,1.7547282]
[1752214147783,0.00505,118410.0,118400.0,1.8124282]
[1752214148078,0.00405,118410.0,118400.0,1.8124282]
[1752214148781,0.00305,118410.0,118400.0,1.8124282]
[1752214149085,0.00305,118410.0,118400.0,1.8134282]
[1752214149383,0.00305,118410.0,118400.0,1.8124282]
[1752214149677,0.00305,118410.0,118400.0,0.65679599]
[1752214149882,0.66637298,118410.0,118400.0,1.23506422]
[1752214150086,0.77857298,118410.0,118400.0,1.23506422]
[1752214150382,0.314369,118410.0,118400.0,1.23606422]
[1752214151384,0.14554,118410.0,118400.0,1.23506422]
[1752214151585,0.314369,118410.0,118400.0,0.62702422]
[1752214151786,0.314369,118410.0,118400.0,1.23498422]
[1752214151984,0.6292,118430.0,118410.0,0.1688223]
[1752214152287,0.71643038,118420.0,118410.0,0.6464291]
[1752214152684,0.71643038,118420.0,118410.0,0.6454291]
[1752214153187,0.71643038,118420.0,118410.0,0.6032223]
[1752214153376,0.168829,118410.0,118400.0,0.40865912]
[1752214153578,0.63203298,118410.0,118400.0,0.04785912]
[1752214153786,0.63263299,118410.0,118400.0,0.04785912]
[1752214154186,0.63263299,118410.0,118400.0,0.24913232]
[1752214154486,1.24055299,118410.0,118400.0,0.24913232]
[1752214154679,1.28277299,118410.0,118400.0,0.24913232]
[1752214154881,1.28377299,118410.0,118400.0,0.24913232]
[1752214155078,1.39927299,118410.0,118400.0,0.24913232]
[1752214155279,0.15932001,118410.0,118400.0,0.62744925]
[1752214155486,0.15872,118410.0,118400.0,0.62744925]
[1752214155883,0.327549,118410.0,118400.0,0.62744925]
[1752214156192,0.79075298,118410.0,118400.0,0.62744925]
[1752214156382,0.79135299,118410.0,118400.0,0.09780605]
[1752214156688,0.78935299,118410.0,118400.0,0.26664925]
[1752214157887,0.78935299,118410.0,118400.0,0.62744925]
[1752214158088,0.78835299,118410.0,118400.0,0.62844925]
[1752214158390,0.78935299,118410.0,118400.0,0.62844925]
[1752214158586,0.78935299,118410.0,118400.0,0.45960605]
[1752214160288,0.79035299,118410.0,118400.0,0.45960605]
[1752214160885,0.78935299,118410.0,118400.0,0.45960605]
[1752214161084,0.78940299,118410.0,118400.0,0.45860605]
[1752214161788,1.39708299,118410.0,118400.0,0.62744925]
[1752214161988,1.39808299,118410.0,118400.0,0.62744925]
[1752214162686,0.79040299,118410.0,118400.0,0.62744925]
[1752214162992,0.93487901,118410.0,118400.0,0.45860605]
[1752214163193,0.93487901,118410.0,118400.0,0.62744925]
[1752214163194,0.79040299,118410.0,118400.0,0.62744925]
[1752214163388,1.39804299,118410.0,118400.0,0.44108912]
[1752214163889,1.40004299,118410.0,118400.0,0.24913232]
[1752214164286,1.40004299,118410.0,118400.0,0.44108912]
[1752214164590,1.40004299,118410.0,118400.0,0.08028912]
[1752214164794,1.39804299,118410.0,118400.0,0.08028912]
[1752214165691,1.39604299,118410.0,118400.0,0.08028912]
[1752214166388,1.39604299,118410.0,118400.0,0.08128912]
[1752214166890,1.39804299,118410.0,118400.0,0.08028912]
[1752214167087,1.40004299,118410.0,118400.0,0.08028912]
[1752214167595,1.46714464,118410.0,118400.0,0.24913232]
[1752214167790,1.46614464,118410.0,118400.0,0.08028912]
[1752214168492,1.46614464,118410.0,118400.0,0.24913232]
[1752214168884,0.65343001,118410.0,118400.0,0.60993232]
[1752214169083,0.65343001,118410.0,118400.0,0.72163232]
[1752214169290,0.82125891,118410.0,118400.0,0.72163232]
[1752214169695,0.82025891,118410.0,118400.0,0.72163232]
[1752214169894,0.82025891,118410.0,118400.0,0.72263232]
[1752214170390,0.82025891,118410.0,118400.0,0.44208912]
[1752214170391,1.28346289,118410.0,118400.0,0.44208912]
[1752214170695,1.39546289,118410.0,118400.0,0.08128912]
[1752214170994,1.39446289,118410.0,118400.0,0.04885912]
[1752214171194,1.39646289,118410.0,118400.0,0.04885912]
[1752214171994,1.46289944,118410.0,118400.0,0.04885912]
[1752214172195,1.46389944,118410.0,118400.0,0.04785912]
[1752214172493,1.82469944,118410.0,118400.0,0.00168912]
[1752214173096,2.24361144,118410.0,118400.0,2e-08]
[1752214173297,2.24161144,118410.0,118400.0,2e-08]
[1752214173596,2.24261144,118410.0,118400.0,2e-08]
[1752214173788,1.99261144,118410.0,118400.0,2e-08]
[1752214174193,1.82369944,118410.0,118400.0,2e-08]
[1752214174399,1.82369944,118410.0,118400.0,0.07922002]
[1752214174898,1.82341944,118410.0,118400.0,0.07922002]
[1752214176199,1.46261944,118410.0,118400.0,0.07922002]
[1752214177799,1.82341944,118410.0,118400.0,0.07922002]
[1752214178401,1.82337944,118410.0,118400.0,0.07922002]
[1752214178600,1.82337944,118410.0,118400.0,2e-08]
[1752214178803,1.99229144,118410.0,118400.0,2e-08]
[1752214179595,1.82337944,118410.0,118400.0,2e-08]
[1752214180102,1.82337944,118410.0,118400.0,0.24806322]
[1752214180497,1.82337944,118410.0,118400.0,0.07922002]
[1752214181397,1.82325944,118410.0,118400.0,0.07922002]
[1752214182002,1.82325944,118410.0,118400.0,0.04756002]
[1752214182693,1.82325944,118410.0,118400.0,2e-08]
[1752214184503,1.82325944,118410.0,118400.0,0.07922002]
[1752214189610,1.46245944,118410.0,118400.0,0.24806322]
[1752214189817,1.46245944,118410.0,118400.0,0.13332002]
[1752214192316,0.99925546,118410.0,118400.0,0.13332002]
[1752214192516,1.46245944,118410.0,118400.0,0.30216322]
[1752214193911,1.46245944,118410.0,118400.0,0.13332002]
[1752214195118,1.82325944,118410.0,118400.0,0.13332002]
[1752214198816,1.46245944,118410.0,118400.0,0.13332002]
[1752214199120,1.82325944,118410.0,118400.0,0.13332002]
[1752214199919,1.82325944,118410.0,118400.0,0.04756002]
[1752214200520,1.88383833,118410.0,118400.0,0.04756002]
[1752214201418,0.1688432,118400.0,118390.0,0.00319606]
[1752214201624,1.10334718,118400.0,118390.0,0.00319606]
[1752214201820,1.10394719,118400.0,118390.0,0.00319606]
[1752214202818,1.10394719,118400.0,118390.0,0.00419606]
[1752214204135,1.10399719,118400.0,118390.0,0.00419606]
[1752214204426,1.14622719,118400.0,118390.0,0.00419606]
[1752214205325,1.15321653,118400.0,118390.0,0.00419606]
[1752214206221,1.21233653,118400.0,118390.0,0.00419606]
[1752214206733,0.1688718,118380.0,118370.0,0.04656]
[1752214207024,0.168886,118370.0,118360.0,0.00168969]
[1752214207224,0.74018998,118370.0,118360.0,0.00168969]
[1752214207519,0.74078999,118370.0,118360.0,0.00168969]
[1752214208224,0.74078999,118370.0,118360.0,0.04824969]
[1752214208425,1.10158999,118370.0,118360.0,0.04824969]
[1752214209022,1.10158999,118370.0,118360.0,0.05324969]
[1752214209724,1.10158999,118370.0,118360.0,0.05624969]
[1752214212423,1.10163999,118370.0,118360.0,0.00968969]
[1752214212623,0.1689146,118350.0,118340.0,0.47365346]
[1752214212824,1.23799858,118350.0,118340.0,0.40736]
[1752214213023,0.74411859,118350.0,118340.0,0.07801]
[1752214213230,1.29409859,118350.0,118340.0,0.07801]
[1752214213433,1.49768001,118350.0,118320.0,0.02409199]
[1752214213619,0.1689717,118310.0,118300.0,0.18567009]
[1752214213823,0.1689717,118310.0,118300.0,0.23707009]
[1752214214126,0.1689717,118310.0,118300.0,0.24313609]
[1752214214320,0.1689717,118310.0,118300.0,0.21336432]
[1752214214526,0.1689717,118310.0,118300.0,0.07501432]
[1752214214729,0.2803717,118310.0,118300.0,0.07501432]
[1752214214926,0.74357568,118310.0,118300.0,0.07501432]
[1752214215127,0.74417569,118310.0,118300.0,0.07501432]
[1752214215626,0.74417569,118310.0,118300.0,0.10039832]
[1752214215930,0.74422569,118310.0,118300.0,0.10039832]
[1752214216226,0.74622569,118310.0,118300.0,0.10039832]
[1752214216832,0.28702171,118310.0,118300.0,0.10039832]
[1752214217027,0.74962568,118310.0,118300.0,0.10039832]
[1752214217235,0.75022569,118310.0,118300.0,0.07801]
[1752214217434,1.74666569,118310.0,118300.0,0.04656]
[1752214219133,1.74666569,118310.0,118300.0,0.07801]
[1752214220432,1.74666569,118310.0,118300.0,0.04656]
[1752214223731,1.74466569,118310.0,118300.0,0.04656]
[1752214223936,1.74666569,118310.0,118300.0,0.04656]
[1752214224129,1.61993699,118310.0,118280.0,0.03301083]
[1752214224330,0.63220438,118290.0,118280.0,0.10439083]
[1752214224535,0.63220438,118290.0,118280.0,0.15165083]
[1752214224536,1.26600439,118290.0,118280.0,0.15165083]
[1752214224734,1.32070439,118290.0,118280.0,0.18297083]
[1752214224935,1.68150439,118290.0,118280.0,0.18297083]
[1752214225127,1.80121671,118290.0,118280.0,0.18297083]
[1752214225536,1.80121671,118290.0,118280.0,0.04895083]
[1752214226033,1.80121671,118290.0,118280.0,0.00169083]
[1752214226835,0.1690289,118270.0,118260.0,0.40806]
[1752214227033,0.1690432,118260.0,118250.0,0.50996]
[1752214227229,0.68314718,118260.0,118250.0,0.49068]
[1752214227431,0.71676278,118270.0,118250.0,0.66549742]
[1752214227634,0.8007195,118270.0,118260.0,0.43938]
[1752214227836,1.26392348,118270.0,118260.0,0.54813992]
[1752214228029,1.26452349,118270.0,118260.0,0.54813992]
[1752214228233,1.62532349,118270.0,118260.0,0.00575992]
[1752214228434,1.73072349,118270.0,118260.0,0.00575992]
[1752214228640,0.1690432,118260.0,118250.0,0.04726]